bitfinex/quotes_SOLUSD_20251001
["timestamp","ask_amount","ask_price","bid_price","bid_amount"]
[1759318363020,0.68,217.82,217.74,0.42]
[1759318368426,0.68,217.82,217.75,32.36]
[1759318368939,20.8,217.83,217.76,0.42]
[1759318369708,21.48,217.83,217.76,0.42]
[1759318370419,1.78138851,217.81,217.77,32.34]
[1759318370618,2.46138851,217.82,217.78,32.34]
[1759318370925,1.78138851,217.79,217.7,0.42]
[1759318371118,1.78138851,217.79,217.71,32.38]
[1759318371119,0.68,217.78,217.71,32.38]
[1759318371325,0.68,217.77,217.71,32.38]
[1759318372328,0.68,217.77,217.72,68.18]
[1759318372732,0.68,217.76,217.72,68.18]
[1759318373229,0.68,217.78,217.72,68.18]
[1759318373926,0.66,217.77,217.72,68.18]
[1759318374137,0.66,217.76,217.72,68.18]
[1759318374532,0.66,217.78,217.72,68.6]
[1759318375921,0.66,217.78,217.72,0.42]
[1759318376241,21.46,217.81,217.73,68.16]
[1759318376539,20.8,217.81,217.73,68.16]
[1759318376736,0.66,217.8,217.74,0.42]
[1759318377114,20.8,217.81,217.75,32.34]
[1759318377317,20.8,217.81,217.75,32.76]
[1759318377625,1.78138851,217.83,217.73,35.82]
[1759318377831,0.66,217.8,217.74,32.34]
[1759318378131,154.3,217.84,217.73,35.82]
[1759318378132,0.66,217.79,217.73,35.82]
[1759318378334,0.66,217.79,217.74,32.34]
[1759318378728,0.66,217.78,217.74,32.34]
[1759318380536,0.66,217.82,217.75,0.42]
[1759318382052,0.66,217.82,217.74,32.34]
[1759318382222,0.66,217.81,217.74,32.34]
[1759318382628,0.66,217.8,217.74,32.34]
[1759318383132,0.66,217.79,217.74,32.34]
[1759318383340,0.66,217.78,217.74,32.34]
[1759318383539,0.66,217.8,217.73,35.82]
[1759318383751,0.66,217.8,217.75,32.32]
[1759318384128,0.66,217.79,217.76,32.32]
[1759318384329,0.66,217.79,217.77,35.82]
[1759318384730,0.66,217.79,217.78,32.32]
[1759318385245,0.66,217.82,217.78,32.32]
[1759318385451,33.98975008,217.84,217.78,32.32]
[1759318385452,0.66,217.81,217.78,32.32]
[1759318385840,0.66,217.8,217.78,32.32]
[1759318386042,0.66,217.79,217.77,35.82]
[1759318386531,0.66,217.78,217.77,35.82]
[1759318386953,2.44138851,217.78,217.77,32.3]
[1759318387248,0.66,217.78,217.77,32.32]
[1759318387456,2.44138851,217.78,217.77,32.32]
[1759318388538,2.44138851,217.78,217.73,35.82]
[1759318388748,0.66,217.77,217.74,32.32]
[1759318388949,20.8,217.81,217.74,32.32]
[1759318389169,0.66,217.8,217.74,32.32]
[1759318389452,0.66,217.79,217.74,32.32]
[1759318389676,0.66,217.79,217.74,32.74]
[1759318390045,0.66,217.78,217.73,35.82]
[1759318390238,0.66,217.78,217.74,32.32]
[1759318390432,21.46,217.81,217.74,32.74]
[1759318390650,0.66,217.8,217.74,32.74]
[1759318390858,0.66,217.82,217.75,0.42]
[1759318391064,14.474711,217.84,217.75,0.42]
[1759318391065,12.06836157,217.84,217.75,0.42]
[1759318391264,32.86836157,217.84,217.75,0.42]
[1759318391639,12.06836157,217.84,217.75,0.42]
[1759318391960,34.64975008,217.84,217.75,0.42]
[1759318392160,37.71609951,217.84,217.75,0.42]
[1759318392369,3.06634943,217.83,217.76,32.36]
[1759318392666,0.66,217.82,217.76,32.36]
[1759318392852,0.66,217.81,217.73,36.24]
[1759318393166,0.66,217.8,217.74,32.34]
[1759318393735,0.66,217.8,217.74,32.76]
[1759318393936,3.72634943,217.82,217.74,32.76]
[1759318394144,32.20836157,217.84,217.7,13.59559401]
[1759318394145,1.78138851,217.77,217.7,36.24]
[1759318394447,0.66,217.76,217.71,32.36]
[1759318394766,3.72634943,217.79,217.72,0.42]
[1759318394948,0.66,217.79,217.72,0.42]
[1759318396950,0.66,217.79,217.71,32.36]
[1759318397154,1.78138851,217.77,217.7,35.82]
[1759318397466,0.66,217.76,217.71,32.4]
[1759318397652,20.8,217.79,217.71,32.4]
[1759318397653,0.66,217.75,217.71,32.4]
[1759318399362,0.72,217.78,217.71,32.82]
[1759318400358,20.8,217.81,217.71,32.4]
[1759318400573,21.52,217.81,217.72,0.42]
[1759318400771,21.52,217.81,217.7,35.82]
[1759318401067,20.8,217.79,217.73,32.4]
[1759318401272,0.72,217.78,217.73,32.4]
[1759318401486,0.72,217.77,217.73,32.4]
[1759318401683,0.72,217.76,217.7,35.82]
[1759318401841,0.72,217.75,217.7,35.82]
[1759318402040,0.72,217.74,217.71,32.4]
[1759318402263,0.72,217.73,217.71,32.4]
[1759318403176,1.78138851,217.77,217.71,32.4]
[1759318403380,0.72,217.76,217.71,32.4]
[1759318403687,0.72,217.75,217.71,32.4]
[1759318403860,0.72,217.74,217.71,32.4]
[1759318404366,1.78138851,217.77,217.71,32.4]
[1759318404569,0.72,217.74,217.7,35.82]
[1759318404758,0.72,217.73,217.72,32.4]
[1759318405273,0.72,217.73,217.64,0.42]
[1759318405475,2.50138851,217.73,217.65,61.84]
[1759318405764,0.72,217.75,217.66,0.42]
[1759318406279,0.72,217.75,217.67,32.42]
[1759318406457,0.72,217.74,217.67,32.42]
[1759318406659,0.72,217.73,217.67,32.42]
[1759318407067,0.72,217.73,217.66,0.42]
[1759318407267,0.72,217.72,217.67,32.42]
[1759318407461,0.72,217.75,217.68,0.42]
[1759318407958,0.72,217.77,217.68,0.42]
[1759318408787,20.8,217.76,217.68,0.42]
[1759318408949,21.52,217.76,217.68,0.42]
[1759318409774,21.52,217.76,217.69,32.42]
[1759318409973,0.72,217.75,217.7,32.42]
[1759318410180,0.72,217.74,217.7,32.42]
[1759318410371,0.72,217.73,217.7,32.42]
[1759318410574,0.72,217.72,217.71,32.42]
[1759318411774,0.72,217.74,217.71,32.42]
[1759318412688,0.72,217.73,217.71,32.42]
[1759318412872,0.72,217.73,217.67,0.42]
[1759318413187,0.72,217.73,217.68,32.4]
[1759318413384,0.72,217.72,217.68,32.4]
[1759318413574,0.72,217.71,217.68,32.4]
[1759318413771,0.72,217.7,217.65,35.82]
[1759318414087,0.72,217.7,217.66,32.42]
[1759318414275,0.72,217.69,217.65,35.82]
[1759318414460,0.72,217.68,217.66,32.42]
[1759318414659,1.78138851,217.71,217.66,32.42]
[1759318414660,0.72,217.67,217.66,32.42]
[1759318415976,0.72,217.67,217.61,0.42]
[1759318416183,0.72,217.67,217.6,35.82]
[1759318416381,22.58138851,217.7,217.61,32.42]
[1759318416382,0.72,217.66,217.61,32.42]
[1759318416585,0.72,217.65,217.61,32.42]
[1759318416894,20.8,217.7,217.61,32.42]
[1759318416895,1.78138851,217.68,217.61,32.42]
[1759318417083,0.72,217.65,217.6,35.82]
[1759318417288,0.72,217.64,217.61,32.42]
[1759318418392,0.72,217.67,217.61,32.42]
[1759318418594,21.52,217.7,217.62,0.42]
[1759318418972,35.31913065,217.7,217.62,0.42]
[1759318419392,0.72,217.73,217.62,0.42]
[1759318419787,20.8,217.72,217.62,0.42]
[1759318419991,21.52,217.72,217.62,0.42]
[1759318420696,0.72,217.72,217.62,0.42]
[1759318420869,0.72,217.72,217.63,13.59559401]
[1759318421074,0.72,217.71,217.64,32.44]
[1759318421269,0.72,217.7,217.64,32.44]
[1759318422102,0.72,217.69,217.6,35.82]
[1759318422303,23.58531009,217.72,217.6,35.82]
[1759318422304,3.50531009,217.68,217.61,32.44]
[1759318422506,0.72,217.68,217.61,32.44]
[1759318422802,0.72,217.67,217.61,32.44]
[1759318423175,0.72,217.69,217.61,32.86]
[1759318423376,0.72,217.69,217.62,0.42]
[1759318425890,0.72,217.72,217.62,0.42]
[1759318429504,0.72,217.72,217.63,13.59559401]
[1759318429687,0.72,217.72,217.64,0.42]
[1759318434106,0.72,217.72,217.65,32.42]
[1759318434307,0.66,217.71,217.65,32.42]
[1759318435224,0.66,217.74,217.66,0.42]
[1759318437727,0.66,217.74,217.67,13.59559401]
[1759318437900,0.66,217.74,217.68,0.42]
[1759318438215,12.29154221,217.76,217.69,13.59559401]
[1759318438427,11.63154221,217.76,217.7,32.82]
[1759318438627,11.63154221,217.76,217.71,0.42]
[1759318438819,12.29154221,217.76,217.71,0.42]
[1759318439619,11.63154221,217.76,217.73,13.59559401]
[1759318439922,11.63154221,217.76,217.74,0.42]
[1759318440108,11.63154221,217.76,217.75,32.4]
[1759318440626,0.66,217.8,217.75,32.4]
[1759318440923,0.66,217.81,217.75,32.82]
[1759318441137,0.66,217.8,217.76,32.4]
[1759318441433,0.66,217.79,217.76,32.4]
[1759318441637,0.66,217.78,217.77,32.4]
[1759318442044,0.66,217.8,217.77,32.4]
[1759318442536,0.66,217.79,217.77,32.4]
[1759318442746,0.66,217.82,217.77,32.4]
[1759318442914,0.66,217.82,217.74,0.42]
[1759318443114,0.66,217.82,217.75,32.4]
[1759318443528,0.1,217.85,217.75,32.4]
[1759318443841,0.66,217.84,217.76,0.42]
[1759318444438,0.66,217.84,217.75,32.4]
[1759318444615,0.1,217.85,217.75,32.4]
[1759318444816,0.66,217.84,217.75,13.59559401]
[1759318445046,0.66,217.83,217.76,32.38]
[1759318445919,0.66,217.82,217.76,32.38]
[1759318446120,0.66,217.84,217.76,32.8]
[1759318446436,0.66,217.83,217.76,32.38]
[1759318446635,0.66,217.82,217.75,13.59559401]
[1759318446814,0.66,217.81,217.77,32.38]
[1759318447018,0.66,217.84,217.78,0.42]
[1759318447326,0.1,217.85,217.78,0.42]
[1759318447635,0.1,217.85,217.79,13.59559401]
[1759318447823,0.1,217.85,217.8,0.42]
[1759318448021,0.1,217.85,217.81,0.42]
[1759318448253,0.1,217.85,217.82,32.8]
[1759318448619,0.1,217.85,217.82,32.38]
[1759318448939,0.1,217.85,217.83,0.42]
[1759318449252,0.1,217.85,217.84,0.42]
[1759318449831,0.1,217.85,217.82,32.38]
[1759318450168,0.1,217.85,217.82,32.8]
[1759318450860,0.66,217.84,217.83,32.36]
[1759318451632,0.66,217.84,217.83,32.38]
[1759318452138,0.66,217.84,217.77,21.22]
[1759318452331,0.66,217.83,217.78,32.38]
[1759318452533,0.1,217.85,217.79,14.01559401]
[1759318453039,0.1,217.85,217.8,0.42]
[1759318453236,0.1,217.85,217.81,0.42]
[1759318453564,0.1,217.85,217.82,0.42]
[1759318453749,0.1,217.85,217.83,32.82]
[1759318454062,0.1,217.85,217.83,32.4]
[1759318454670,0.1,217.85,217.81,13.59559401]
[1759318454866,0.1,217.85,217.84,32.4]
[1759318455254,0.1,217.85,217.84,32.82]
[1759318455457,0.1,217.85,217.84,32.4]
[1759318455855,0.1,217.85,217.83,13.59559401]
[1759318456068,0.1,217.85,217.84,32.8]
[1759318456737,0.1,217.85,217.84,32.38]
[1759318456938,0.1,217.85,217.83,13.59559401]
[1759318457143,0.1,217.85,217.84,32.38]
[1759318457863,0.1,217.85,217.81,13.59559401]
[1759318458174,0.1,217.85,217.84,32.38]
[1759318459773,0.1,217.85,217.81,13.59559401]
[1759318459983,0.72,217.84,217.82,32.38]
[1759318461281,0.72,217.83,217.79,20.8]
[1759318461451,0.72,217.83,217.8,32.36]
[1759318461971,0.1,217.85,217.8,32.36]
[1759318461972,0.82,217.85,217.8,32.36]
[1759318462267,0.1,217.85,217.8,32.36]
[1759318462440,0.72,217.84,217.8,32.36]
[1759318463056,0.1,217.85,217.81,32.36]
[1759318463645,0.8,217.85,217.81,32.36]
[1759318464151,0.1,217.85,217.81,32.36]
[1759318464760,0.8,217.85,217.81,32.36]
[1759318465272,0.8,217.85,217.79,21.22]
[1759318465462,0.8,217.85,217.8,32.34]
[1759318466168,0.1,217.85,217.8,32.34]
[1759318466475,0.8,217.85,217.81,32.34]
[1759318467885,0.1,217.85,217.81,32.34]
[1759318468682,0.1,217.85,217.78,0.42]
[1759318468873,0.7,217.84,217.76,35.82]
[1759318469069,0.7,217.83,217.79,32.32]
[1759318469270,0.1,217.85,217.76,35.82]
[1759318469583,0.7,217.82,217.77,32.34]
[1759318469971,0.7,217.82,217.76,35.82]
[1759318470182,0.7,217.82,217.77,32.34]
[1759318470558,0.8,217.85,217.78,14.01559401]
[1759318470960,0.7,217.84,217.78,14.01559401]
[1759318471371,0.7,217.84,217.78,13.59559401]
[1759318472970,0.1,217.85,217.79,0.42]
[1759318473192,0.1,217.85,217.8,32.34]
[1759318473504,0.1,217.85,217.81,0.42]
[1759318473705,0.1,217.85,217.8,32.34]
[1759318473870,0.1,217.85,217.82,0.42]
[1759318474280,0.1,217.85,217.81,13.59559401]
[1759318474476,0.1,217.85,217.81,14.01559401]
[1759318476295,0.1,217.85,217.81,13.59559401]
[1759318476492,0.1,217.85,217.81,14.01559401]
[1759318477490,0.1,217.85,217.81,0.42]
[1759318478076,0.1,217.85,217.82,0.42]
[1759318478401,0.1,217.85,217.81,14.01559401]
[1759318478595,0.1,217.85,217.8,32.34]
[1759318478596,0.1,217.85,217.82,0.42]
[1759318479005,0.1,217.85,217.83,32.32]
[1759318479306,0.1,217.85,217.84,0.42]
[1759318479553,0.1,217.85,217.84,14.01559401]
[1759318481222,0.1,217.85,217.84,46.33559401]
[1759318482147,0.1,217.85,217.84,13.59559401]
[1759318482315,0.1,217.85,217.84,45.91559401]
[1759318482515,0.1,217.85,217.84,46.33559401]
[1759318482743,0.1,217.85,217.84,32.74]
[1759318483530,0.1,217.85,217.84,0.42]
[1759318483737,0.1,217.85,217.84,32.72]
[1759318484948,0.1,217.85,217.84,32.3]
[1759318485854,0.1,217.85,217.8,20.8]
[1759318486031,0.7,217.84,217.76,35.8]
[1759318486234,0.7,217.83,217.77,32.3]
[1759318491841,0.7,217.82,217.77,32.3]
[1759318492041,0.7,217.82,217.77,32.72]
[1759318492234,0.7,217.82,217.77,32.3]
[1759318492836,0.7,217.82,217.77,32.72]
[1759318494239,0.66,217.82,217.78,32.34]
[1759318495268,0.66,217.81,217.78,32.34]
[1759318495448,0.66,217.81,217.76,35.8]
[1759318495449,0.66,217.8,217.76,35.8]
[1759318495773,0.1,217.85,217.76,35.8]
[1759318495774,0.66,217.79,217.77,32.32]
[1759318495948,0.66,217.78,217.77,32.32]
[1759318496145,0.66,217.8,217.77,32.32]
[1759318496666,0.1,217.85,217.78,0.42]
[1759318497560,0.66,217.84,217.77,32.32]
[1759318497761,0.1,217.85,217.78,0.42]
[1759318498962,0.66,217.84,217.77,32.32]
[1759318499169,0.66,217.83,217.77,32.32]
[1759318499741,0.66,217.82,217.78,32.34]
[1759318499942,0.66,217.81,217.78,32.34]
[1759318500273,0.1,217.85,217.78,32.34]
[1759318500476,0.66,217.84,217.78,32.34]
[1759318500775,0.66,217.83,217.78,32.34]
[1759318500955,0.66,217.82,217.78,32.34]
[1759318502870,0.66,217.81,217.78,32.34]
[1759318503055,0.66,217.81,217.79,32.32]
[1759318503964,1.87896056,217.85,217.76,35.8]
[1759318504376,1.87896056,217.85,217.77,32.32]
[1759318504588,0.66,217.84,217.77,32.32]
[1759318504751,0.66,217.83,217.77,32.32]
[1759318505080,0.66,217.82,217.76,35.8]
[1759318505263,0.66,217.81,217.77,32.32]
[1759318505453,0.66,217.8,217.77,32.32]
[1759318505655,0.66,217.79,217.77,32.32]
[1759318506371,0.76,217.85,217.78,0.42]
[1759318506578,0.1,217.85,217.78,0.42]
[1759318507576,0.1,217.85,217.8,20.8]
[1759318507761,0.1,217.85,217.84,20.8]
[1759318507963,0.1,217.85,217.84,53.18]
[1759318508161,0.1,217.85,217.84,53.6]
[1759318508672,0.1,217.85,217.8,20.8]
[1759318508868,0.1,217.85,217.81,0.42]
[1759318509065,0.1,217.85,217.82,32.8]
[1759318509269,0.1,217.85,217.83,32.38]
[1759318509770,0.1,217.85,217.83,32.8]
[1759318509957,0.1,217.85,217.84,0.42]
[1759318512374,0.1,217.85,217.83,32.38]
[1759318515079,0.1,217.85,217.84,32.38]
[1759318517576,0.1,217.85,217.84,32.36]
[1759318517773,0.76,217.85,217.84,32.36]
[1759318518077,0.76,217.85,217.79,21.22]
[1759318518078,0.76,217.85,217.79,20.8]
[1759318518275,0.66,217.84,217.8,32.36]
[1759318518495,0.1,217.85,217.8,32.36]
[1759318518656,0.66,217.84,217.8,32.36]
[1759318518857,0.66,217.83,217.8,32.36]
[1759318519270,0.76,217.85,217.8,32.36]
[1759318519481,0.1,217.85,217.8,32.36]
[1759318519687,0.66,217.84,217.81,32.36]
[1759318519859,0.1,217.85,217.81,32.36]
[1759318520068,0.1,217.85,217.81,32.78]
[1759318521283,0.76,217.85,217.81,32.36]
[1759318521657,0.66,217.84,217.81,32.36]
[1759318521863,0.66,217.83,217.81,32.36]
[1759318522258,0.1,217.85,217.8,35.8]
[1759318522499,0.66,217.82,217.76,35.8]
[1759318522671,0.66,217.81,217.76,35.8]
[1759318522885,0.66,217.8,217.77,32.36]
[1759318523177,1.87896056,217.85,217.77,32.36]
[1759318523375,0.71,217.84,217.77,32.36]
[1759318523575,0.71,217.83,217.77,32.36]
[1759318523776,0.71,217.82,217.77,32.36]
[1759318524283,0.71,217.81,217.77,32.36]
[1759318524524,0.1,217.85,217.77,32.36]
[1759318524657,0.71,217.83,217.77,32.36]
[1759318524858,0.71,217.82,217.77,32.36]
[1759318525064,0.71,217.81,217.77,32.36]
[1759318525471,0.1,217.85,217.78,0.42]
[1759318527070,0.1,217.85,217.79,32.42]
[1759318527071,0.65,217.84,217.79,32.42]
[1759318527279,0.65,217.83,217.79,32.42]
[1759318527571,0.65,217.82,217.79,32.42]
[1759318528486,0.75,217.85,217.76,35.8]
[1759318528689,0.65,217.84,217.77,32.42]
[1759318529081,0.1,217.85,217.78,0.42]
[1759318529800,0.1,217.85,217.79,32.44]
[1759318530102,0.75,217.85,217.79,32.44]
[1759318530298,0.65,217.84,217.79,32.44]
[1759318530502,0.65,217.83,217.79,32.44]
[1759318530698,0.65,217.82,217.79,32.44]
[1759318532311,0.65,217.81,217.79,32.44]
[1759318535594,0.65,217.81,217.8,32.4]
[1759318537217,0.1,217.85,217.8,32.4]
[1759318537505,0.75,217.85,217.8,32.82]
[1759318537701,0.65,217.84,217.8,32.4]
[1759318538001,0.1,217.85,217.8,32.4]
[1759318538213,0.75,217.85,217.8,32.4]
[1759318538799,0.1,217.85,217.8,32.4]
[1759318539106,0.65,217.84,217.8,32.4]
[1759318539809,0.65,217.83,217.8,32.4]
[1759318539987,0.75,217.85,217.8,32.4]
[1759318540189,0.65,217.84,217.8,32.4]
[1759318542809,0.1,217.85,217.81,0.42]
[1759318543002,0.1,217.85,217.82,0.42]
[1759318543598,0.1,217.85,217.83,0.42]
[1759318543814,0.1,217.85,217.84,32.38]
[1759318544321,0.75,217.85,217.84,32.38]
[1759318546893,0.75,217.85,217.76,35.8]
[1759318547098,0.65,217.84,217.77,32.38]
[1759318547298,0.65,217.84,217.78,0.42]
[1759318547703,0.65,217.84,217.77,32.38]
[1759318547906,0.65,217.83,217.77,32.38]
[1759318548114,0.65,217.82,217.77,32.38]
[1759318548316,0.65,217.81,217.76,35.8]
[1759318548520,0.65,217.8,217.77,32.38]
[1759318548699,0.65,217.79,217.77,32.38]
[1759318548900,0.65,217.8,217.77,32.38]
[1759318549302,0.65,217.82,217.77,32.38]
[1759318549496,0.65,217.84,217.78,0.42]
[1759318550708,0.65,217.84,217.77,32.38]
[1759318550912,0.65,217.83,217.77,32.38]
[1759318553913,0.1,217.85,217.77,32.38]
[1759318554113,0.1,217.85,217.78,0.42]
[1759318554422,0.82,217.85,217.78,0.42]
[1759318557413,0.82,217.85,217.77,32.38]
[1759318557614,0.72,217.84,217.77,32.38]
[1759318558127,0.72,217.83,217.77,32.38]
[1759318558310,0.72,217.82,217.77,32.38]
[1759318558634,0.72,217.81,217.77,32.38]
[1759318559310,0.1,217.85,217.76,35.8]
[1759318559511,0.72,217.84,217.77,32.34]
[1759318559715,0.72,217.84,217.78,0.42]
[1759318560806,0.72,217.84,217.77,32.34]
[1759318561012,0.72,217.83,217.77,32.34]
[1759318561235,0.1,217.85,217.77,32.34]
[1759318561537,0.72,217.82,217.77,32.34]
[1759318561849,0.72,217.82,217.77,32.76]
[1759318562212,0.1,217.85,217.78,0.42]
[1759318562731,0.82,217.85,217.78,0.42]
[1759318565232,0.82,217.85,217.77,32.34]
[1759318565420,0.72,217.84,217.77,32.34]
[1759318565620,0.72,217.83,217.77,32.34]
[1759318566322,0.72,217.83,217.77,32.76]
[1759318567440,0.82,217.85,217.77,32.76]
[1759318567817,0.1,217.85,217.77,32.76]
[1759318568032,0.72,217.84,217.77,32.76]
[1759318569235,0.72,217.84,217.77,32.34]
[1759318569414,0.72,217.84,217.78,0.42]
[1759318570346,0.72,217.84,217.78,36.22]
[1759318570834,0.1,217.85,217.78,35.8]
[1759318571043,0.72,217.83,217.78,35.8]
[1759318571427,0.72,217.82,217.78,35.8]
[1759318571647,0.72,217.81,217.78,35.8]
[1759318571824,0.72,217.83,217.79,32.28]
[1759318572435,0.72,217.82,217.79,32.28]
[1759318572744,0.82,217.85,217.79,32.28]
[1759318572949,0.82,217.85,217.79,32.7]
[1759318575230,0.1,217.85,217.79,32.7]
[1759318575542,0.1,217.85,217.8,0.42]
[1759318575947,0.82,217.85,217.8,0.42]
[1759318576244,3.50158271,217.84,217.78,35.8]
[1759318576541,0.72,217.83,217.79,32.26]
[1759318576744,0.72,217.84,217.79,32.26]
[1759318576944,0.1,217.85,217.79,32.68]
[1759318578343,0.72,217.84,217.78,35.8]
[1759318578545,2.88158271,217.85,217.79,32.32]
[1759318578744,0.72,217.83,217.79,32.32]
[1759318578952,0.72,217.82,217.79,32.32]
[1759318584435,0.1,217.85,217.79,32.32]
[1759318584651,0.72,217.81,217.79,32.32]
[1759318585041,0.72,217.81,217.8,32.28]
[1759318586360,0.72,217.83,217.8,32.28]
[1759318586547,0.72,217.82,217.8,32.28]
[1759318586749,0.72,217.81,217.8,32.28]
[1759318590640,2.88158271,217.85,217.8,32.28]
[1759318590942,0.72,217.84,217.8,32.28]
[1759318591249,0.72,217.83,217.8,32.28]
[1759318591449,0.72,217.82,217.8,32.28]
[1759318592134,2.78158271,217.81,217.78,35.8]
[1759318592443,3.50158271,217.81,217.79,32.26]
[1759318592658,2.78158271,217.81,217.79,32.26]
[1759318594763,3.50158271,217.81,217.79,32.26]
[1759318595663,3.50158271,217.81,217.8,32.26]
[1759318597166,2.78158271,217.81,217.8,32.26]
[1759318599348,3.50158271,217.81,217.8,32.26]
[1759318600464,2.78158271,217.81,217.8,32.26]
[1759318606376,0.82,217.85,217.8,32.26]
[1759318606576,2.78158271,217.82,217.8,32.26]
[1759318606871,0.82,217.85,217.81,32.24]
[1759318607183,3.50158271,217.84,217.81,32.24]
[1759318607550,0.72,217.83,217.81,32.24]
[1759318608075,2.78158271,217.84,217.81,32.24]
[1759318608256,0.72,217.83,217.81,32.24]
[1759318608967,0.72,217.83,217.82,32.24]
[1759318609567,3.50158271,217.83,217.77,35.82]
[1759318609777,0.72,217.82,217.78,32.24]
[1759318609955,0.72,217.81,217.78,32.24]
[1759318610155,0.72,217.8,217.78,32.24]
[1759318611173,2.78158271,217.81,217.78,32.24]
[1759318611557,0.72,217.8,217.78,32.24]
[1759318611760,2.78158271,217.81,217.78,32.24]
[1759318612067,3.50158271,217.81,217.78,32.24]
[1759318612259,0.72,217.81,217.78,32.24]
[1759318612459,0.72,217.81,217.79,32.24]
[1759318612674,4.22158271,217.81,217.79,32.24]
[1759318613359,3.50158271,217.81,217.79,32.24]
[1759318614055,4.16158271,217.81,217.79,32.24]
[1759318614265,0.66,217.8,217.77,35.82]
[1759318614470,0.1,217.85,217.78,32.24]
[1759318614680,0.66,217.8,217.78,32.24]
[1759318615469,5.53368696,217.8,217.78,32.24]
[1759318615669,0.66,217.8,217.78,32.24]
[1759318616070,0.66,217.8,217.79,32.24]
[1759318616876,0.66,217.8,217.77,35.82]
[1759318617059,0.66,217.8,217.79,32.24]
[1759318620387,5.53368696,217.81,217.79,32.24]
[1759318620880,0.66,217.84,217.79,32.24]
[1759318621065,6.19368696,217.83,217.79,32.24]
[1759318621496,0.66,217.83,217.79,32.24]
[1759318621871,6.19368696,217.82,217.79,32.24]
[1759318623481,0.76,217.85,217.79,32.66]
[1759318623788,6.19368696,217.83,217.79,32.66]
[1759318623994,0.66,217.82,217.75,36.24]
[1759318624163,0.66,217.82,217.75,35.82]